[Event "*** Titled Tuesday 3|2 Blitz"]
[Site "Chess.com"]
[Date "2016.06.07"]
[Round "1"]
[White "Fibrinogen"]
[Black "jcibarra"]
[Result "0-1"]
[WhiteElo "2319"]
[BlackElo "2627"]
[TimeControl "180+2"]
[EndTime "17:11:52 PDT"]
[Termination "jcibarra won by resignation"]

1. e4 {[%clk 0:03:00.1]} 1... c5 {[%clk 0:02:57.5]} 2. Nf3 {[%clk 0:03:00.6]}
2... d6 {[%clk 0:02:57.8]} 3. d4 {[%clk 0:03:02.2]} 3... cxd4 {[%clk 0:02:59.7]}
4. Nxd4 {[%clk 0:03:04.1]} 4... Nf6 {[%clk 0:02:59.7]} 5. Nc3 {[%clk 0:03:05.6]}
5... a6 {[%clk 0:02:58.1]} 6. Be3 {[%clk 0:03:06]} 6... Ng4 {[%clk 0:02:56.7]}
7. Bc1 {[%clk 0:03:02.2]} 7... Nf6 {[%clk 0:02:56.4]} 8. Be3 {[%clk 0:03:02.6]}
8... Ng4 {[%clk 0:02:57]} 9. Bc1 {[%clk 0:03:03]} 9... Nc6 {[%clk 0:02:58.1]}
10. h3 {[%clk 0:03:01.2]} 10... Nf6 {[%clk 0:02:55.7]} 11. Be3 {[%clk
0:02:59.9]} 11... e6 {[%clk 0:02:48.5]} 12. g4 {[%clk 0:02:58.1]} 12... Be7
{[%clk 0:02:44.8]} 13. Bg2 {[%clk 0:02:58.3]} 13... Qc7 {[%clk 0:02:44.4]} 14.
f4 {[%clk 0:02:54.3]} 14... h6 {[%clk 0:02:41.5]} 15. Qe2 {[%clk 0:02:51.1]}
15... Bd7 {[%clk 0:02:37.5]} 16. O-O-O {[%clk 0:02:51.3]} 16... g5 {[%clk
0:02:37.2]} 17. Nxc6 {[%clk 0:02:40]} 17... Bxc6 {[%clk 0:02:35.6]} 18. fxg5
{[%clk 0:02:40.6]} 18... hxg5 {[%clk 0:02:34.3]} 19. Bxg5 {[%clk 0:02:39.3]}
19... O-O-O {[%clk 0:02:12.1]} 20. Kb1 {[%clk 0:02:37.6]} 20... Rdg8 {[%clk
0:02:02.7]} 21. h4 {[%clk 0:02:34.4]} 21... Kb8 {[%clk 0:01:50.2]} 22. Rhf1
{[%clk 0:02:32.3]} 22... Nh7 {[%clk 0:01:44.2]} 23. Rxf7 {[%clk 0:02:26.9]}
23... Nxg5 {[%clk 0:01:42.5]} 24. hxg5 {[%clk 0:02:28.8]} 24... Be8 {[%clk
0:01:39.6]} 25. Rff1 {[%clk 0:02:04.6]} 25... Rxg5 {[%clk 0:01:34.8]} 26. a3
{[%clk 0:01:40.1]} 26... Rhg8 {[%clk 0:01:35.5]} 27. Bf3 {[%clk 0:01:35.7]}
27... Bf6 {[%clk 0:01:36.1]} 28. Qd2 {[%clk 0:01:35.1]} 28... Rc5 {[%clk
0:01:32.1]} 29. Qxd6 {[%clk 0:01:34.1]} 29... Bxc3 {[%clk 0:01:26]} 30. bxc3
{[%clk 0:01:33]} 30... Bb5 {[%clk 0:01:26.5]} 31. Rf2 {[%clk 0:01:30.6]} 31...
Rxc3 {[%clk 0:01:25.1]} 32. Kb2 {[%clk 0:01:30.4]} 32... Qxd6 {[%clk 0:01:16.8]}
33. Rxd6 {[%clk 0:01:29.7]} 33... Re3 {[%clk 0:01:18.2]} 34. Rdd2 {[%clk
0:01:22.8]} 34... e5 {[%clk 0:01:15.8]} 35. Be2 {[%clk 0:01:22.8]} 35... Bc6
{[%clk 0:01:07.9]} 36. Rf5 {[%clk 0:01:19.9]} 36... Re8 {[%clk 0:01:06.4]} 37.
Bd3 {[%clk 0:01:16.6]} 37... Rg3 {[%clk 0:01:01.3]} 38. g5 {[%clk 0:01:14.1]}
38... Kc7 {[%clk 0:01:00.9]} 39. Rdf2 {[%clk 0:01:11.8]} 39... Re7 {[%clk
0:00:59.3]} 40. Rf7 {[%clk 0:01:11.6]} 40... Rxf7 {[%clk 0:00:55.1]} 41. Rxf7+
{[%clk 0:01:13.5]} 41... Kd6 {[%clk 0:00:55.8]} 42. Rg7 {[%clk 0:01:15]} 42...
Kc5 {[%clk 0:00:55]} 43. g6 {[%clk 0:01:16.1]} 43... Kd4 {[%clk 0:00:52.2]} 44.
Rg8 {[%clk 0:01:13.9]} 44... a5 {[%clk 0:00:46.3]} 45. g7 {[%clk 0:01:11.5]}
45... Bxe4 {[%clk 0:00:40]} 46. Rd8+ {[%clk 0:01:04.2]} 46... Bd5 {[%clk
0:00:40.8]} 47. c4 {[%clk 0:01:04.9]} 47... Kxd3 {[%clk 0:00:40.2]} 48. Rxd5+
{[%clk 0:01:04.4]} 48... Kxc4 {[%clk 0:00:39.3]} 49. Rxe5 {[%clk 0:01:04.7]}
49... Rg2+ {[%clk 0:00:39.3]} 50. Kc1 {[%clk 0:01:03.3]} 50... b6 {[%clk
0:00:35.4]} 51. Re7 {[%clk 0:00:58.7]} 51... Kb3 {[%clk 0:00:33.8]} 52. Rb7
{[%clk 0:00:59.3]} 52... Kxa3 {[%clk 0:00:32.9]} 53. Rxb6 {[%clk 0:00:55.2]}
53... Rxg7 {[%clk 0:00:34.4]} 54. Kc2 {[%clk 0:00:55.8]} 54... Rg2+ {[%clk
0:00:34.8]} 55. Kc3 {[%clk 0:00:56.8]} 55... a4 {[%clk 0:00:35.3]} 56. Rb1
{[%clk 0:00:57]} 56... Ka2 {[%clk 0:00:35.9]} 57. Rb8 {[%clk 0:00:56.3]} 57...
a3 {[%clk 0:00:36.2]} 58. Rb7 {[%clk 0:00:57.1]} 58... Rb2 {[%clk 0:00:37]} 59.
Re7 {[%clk 0:00:56.3]} 59... Rb1 {[%clk 0:00:37.6]} 60. Re2+ {[%clk 0:00:52.6]}
60... Ka1 {[%clk 0:00:38]} 61. Rg2 {[%clk 0:00:51.5]} 61... Rb8 {[%clk
0:00:38.1]} 62. Rg1+ {[%clk 0:00:51.5]} 62... Rb1 {[%clk 0:00:38.7]} 63. Rg2
{[%clk 0:00:52.6]} 63... Rb2 {[%clk 0:00:37.2]} 64. Rg1+ {[%clk 0:00:53.4]}
64... Ka2 {[%clk 0:00:38.7]} 65. Rg7 {[%clk 0:00:53.6]} 65... Rb3+ {[%clk
0:00:38.6]} 66. Kc2 {[%clk 0:00:54.6]} 66... Rb8 {[%clk 0:00:39]} 67. Rc7 {[%clk
0:00:47.5]} 67... Rh8 {[%clk 0:00:39.5]} 68. Rb7 {[%clk 0:00:46.8]} 68... Rc8+
{[%clk 0:00:39.8]} 69. Kd2 {[%clk 0:00:46.4]} 69... Rc6 {[%clk 0:00:40.7]} 70.
Rb8 {[%clk 0:00:46.9]} 70... Rc5 {[%clk 0:00:41.9]} 71. Rb7 {[%clk 0:00:45.8]}
71... Rc8 {[%clk 0:00:43.3]} 72. Rb6 {[%clk 0:00:46.7]} 72... Rc7 {[%clk
0:00:43.3]} 73. Rb8 {[%clk 0:00:47.5]} 73... Ka1 {[%clk 0:00:44.4]} 74. Rb6
{[%clk 0:00:47.7]} 74... Rh7 {[%clk 0:00:44.7]} 75. Kc2 {[%clk 0:00:46]} 75...
Rh2+ {[%clk 0:00:45.3]} 76. Kc3 {[%clk 0:00:46.2]} 76... Rb2 {[%clk 0:00:45.7]}
77. Rg6 {[%clk 0:00:46.4]} 77... a2 {[%clk 0:00:43.2]} 78. Rf6 {[%clk
0:00:33.8]} 78... Rb1 {[%clk 0:00:43.1]} 79. Kc2 {[%clk 0:00:24.7]} 79... Rh1
{[%clk 0:00:42.5]} 80. Rf5 {[%clk 0:00:24]} 80... Rh2+ {[%clk 0:00:40.3]} 81.
Kb3 {[%clk 0:00:24.7]} 81... Rb2+ {[%clk 0:00:39]} 82. Kc3 {[%clk 0:00:25.1]}
82... Rb1 {[%clk 0:00:40.2]} 83. Kc2 {[%clk 0:00:25.9]} 83... Rb2+ {[%clk
0:00:41.5]} 84. Kc3 {[%clk 0:00:26.7]} 84... Rb8 {[%clk 0:00:42.1]} 85. Rf1+
{[%clk 0:00:27]} 85... Rb1 {[%clk 0:00:42.9]} 86. Rf5 {[%clk 0:00:28.9]} 86...
Rc1+ {[%clk 0:00:44.1]} 87. Kb3 {[%clk 0:00:29.6]} 87... Kb1 {[%clk 0:00:42.9]}
0-1

[Event "*** Titled Tuesday 3|2 Blitz"]
[Site "Chess.com"]
[Date "2016.06.07"]
[Round "2"]
[White "jcibarra"]
[Black "michaelq2d5"]
[Result "1-0"]
[WhiteElo "2632"]
[BlackElo "2479"]
[TimeControl "180+2"]
[EndTime "17:15:13 PDT"]
[Termination "jcibarra won by checkmate"]

1. e4 {[%clk 0:02:59]} 1... e5 {[%clk 0:03:00.6]} 2. Nf3 {[%clk 0:03:00.3]} 2...
Nc6 {[%clk 0:03:01.6]} 3. Bb5 {[%clk 0:03:01.8]} 3... a6 {[%clk 0:03:02.6]} 4.
Bxc6 {[%clk 0:03:03.4]} 4... dxc6 {[%clk 0:03:04.5]} 5. O-O {[%clk 0:03:05.3]}
5... f6 {[%clk 0:03:05.9]} 6. d4 {[%clk 0:03:04.9]} 6... exd4 {[%clk 0:03:07.1]}
7. Nxd4 {[%clk 0:03:06.8]} 7... c5 {[%clk 0:03:07.7]} 8. Nb3 {[%clk 0:03:08.4]}
8... Qxd1 {[%clk 0:03:08.5]} 9. Rxd1 {[%clk 0:03:10.3]} 9... Bd7 {[%clk
0:03:09.9]} 10. Bf4 {[%clk 0:03:10.3]} 10... O-O-O {[%clk 0:03:10.5]} 11. Nc3
{[%clk 0:03:11.8]} 11... g5 {[%clk 0:02:46.1]} 12. Bg3 {[%clk 0:03:09.8]} 12...
Bc6 {[%clk 0:02:45.1]} 13. Rxd8+ {[%clk 0:03:04.9]} 13... Kxd8 {[%clk
0:02:45.6]} 14. Na5 {[%clk 0:03:06.8]} 14... Ne7 {[%clk 0:02:44.4]} 15. Rd1+
{[%clk 0:03:06.9]} 15... Kc8 {[%clk 0:02:43.3]} 16. Nxc6 {[%clk 0:03:08.5]}
16... Nxc6 {[%clk 0:02:43.9]} 17. Nd5 {[%clk 0:03:10.1]} 17... Bg7 {[%clk
0:02:42.6]} 18. Bxc7 {[%clk 0:03:06.9]} 18... Nb4 {[%clk 0:02:33]} 19. Bb6
{[%clk 0:02:56.3]} 19... Nxd5 {[%clk 0:02:32.7]} 20. Rxd5 {[%clk 0:02:56.6]}
20... Re8 {[%clk 0:02:32.1]} 21. f3 {[%clk 0:02:54.3]} 21... Re6 {[%clk
0:02:31.8]} 22. Rd8# {[%clk 0:02:54.6]} 1-0

[Event "*** Titled Tuesday 3|2 Blitz"]
[Site "Chess.com"]
[Date "2016.06.07"]
[Round "2"]
[White "BikingBrian"]
[Black "MinhGTrAn"]
[Result "0-1"]
[WhiteElo "2109"]
[BlackElo "2637"]
[TimeControl "180+2"]
[EndTime "17:17:28 PDT"]
[Termination "MinhGTrAn won by resignation"]

1. d4 {[%clk 0:03:01.9]} 1... Nf6 {[%clk 0:03:00]} 2. c4 {[%clk 0:03:03]} 2...
e6 {[%clk 0:03:01.9]} 3. Nc3 {[%clk 0:03:04.3]} 3... Bb4 {[%clk 0:03:03.5]} 4.
e3 {[%clk 0:03:05.9]} 4... O-O {[%clk 0:03:03.2]} 5. a3 {[%clk 0:03:07.4]} 5...
Bxc3+ {[%clk 0:03:04.2]} 6. bxc3 {[%clk 0:03:09.3]} 6... b6 {[%clk 0:03:05.6]}
7. Bd3 {[%clk 0:03:10.5]} 7... Ba6 {[%clk 0:03:06.2]} 8. e4 {[%clk 0:03:09.2]}
8... d6 {[%clk 0:03:07.6]} 9. e5 {[%clk 0:02:56.3]} 9... dxe5 {[%clk 0:03:09.5]}
10. dxe5 {[%clk 0:02:57.4]} 10... Nfd7 {[%clk 0:03:06.2]} 11. Qh5 {[%clk
0:02:33.8]} 11... g6 {[%clk 0:03:06.2]} 12. Qh6 {[%clk 0:02:24.9]} 12... Nxe5
{[%clk 0:03:06.7]} 13. Be4 {[%clk 0:02:23.9]} 13... Bxc4 {[%clk 0:02:37]} 14.
Bg5 {[%clk 0:02:19.1]} 14... f6 {[%clk 0:02:38.4]} 15. Bf4 {[%clk 0:02:13.9]}
15... Nbc6 {[%clk 0:02:25.4]} 16. Bxe5 {[%clk 0:01:59.8]} 16... Nxe5 {[%clk
0:02:23.9]} 17. Nf3 {[%clk 0:01:44.1]} 17... Nd3+ {[%clk 0:02:19.7]} 18. Bxd3
{[%clk 0:01:43.8]} 18... Qxd3 {[%clk 0:02:21.6]} 19. Qe3 {[%clk 0:01:36.8]}
19... Rad8 {[%clk 0:02:18.4]} 20. Nd2 {[%clk 0:01:32.1]} 20... Qxe3+ {[%clk
0:02:15.9]} 21. fxe3 {[%clk 0:01:33.1]} 21... Ba6 {[%clk 0:02:15.8]} 22. O-O-O
{[%clk 0:01:32.1]} 22... Rd3 {[%clk 0:02:16.3]} 23. Ne4 {[%clk 0:01:23.7]} 23...
Rxe3 {[%clk 0:02:14.5]} 24. Rhe1 {[%clk 0:01:24.7]} 24... Rxe1 {[%clk
0:02:08.3]} 25. Rxe1 {[%clk 0:01:26.6]} 25... Kf7 {[%clk 0:02:10.1]} 26. Rd1
{[%clk 0:01:25]} 26... Ke7 {[%clk 0:02:11.3]} 0-1

[Event "*** Titled Tuesday 3|2 Blitz"]
[Site "Chess.com"]
[Date "2016.06.07"]
[Round "2"]
[White "chessking2151"]
[Black "Viaje"]
[Result "1-0"]
[WhiteElo "2321"]
[BlackElo "2137"]
[TimeControl "180+2"]
[EndTime "17:17:35 PDT"]
[Termination "chessking2151 won by resignation"]

1. e4 {[%clk 0:02:52.9]} 1... c5 {[%clk 0:03:01.2]} 2. c3 {[%clk 0:02:52.5]}
2... Nf6 {[%clk 0:03:01.4]} 3. e5 {[%clk 0:02:52.4]} 3... Nd5 {[%clk 0:03:03]}
4. Nf3 {[%clk 0:02:52.9]} 4... e6 {[%clk 0:03:03.7]} 5. d4 {[%clk 0:02:51.6]}
5... cxd4 {[%clk 0:03:05.6]} 6. Bc4 {[%clk 0:02:52.6]} 6... dxc3 {[%clk
0:03:05.6]} 7. Bxd5 {[%clk 0:02:53]} 7... cxb2 {[%clk 0:03:07.1]} 8. Bxb2 {[%clk
0:02:54.2]} 8... exd5 {[%clk 0:03:08.2]} 9. Nc3 {[%clk 0:02:55.9]} 9... Na6
{[%clk 0:03:08.3]} 10. Nxd5 {[%clk 0:02:53.3]} 10... Nc7 {[%clk 0:03:08.3]} 11.
O-O {[%clk 0:02:38.3]} 11... Ne6 {[%clk 0:02:59.9]} 12. Nd4 {[%clk 0:02:36.4]}
12... Be7 {[%clk 0:02:54.1]} 13. Nf5 {[%clk 0:02:35.6]} 13... Bf8 {[%clk
0:02:51.5]} 14. Nd6+ {[%clk 0:02:22.2]} 14... Bxd6 {[%clk 0:02:51.7]} 15. exd6
{[%clk 0:02:23.4]} 15... O-O {[%clk 0:02:49.2]} 16. Ne7+ {[%clk 0:02:17.1]}
16... Kh8 {[%clk 0:02:49.6]} 17. Rc1 {[%clk 0:02:18]} 17... b6 {[%clk
0:02:48.4]} 18. Qf3 {[%clk 0:02:09]} 18... Ba6 {[%clk 0:02:40.9]} 19. Rfd1
{[%clk 0:02:06.8]} 19... b5 {[%clk 0:02:38.4]} 20. Qg4 {[%clk 0:02:00.8]} 20...
Qb6 {[%clk 0:02:32.6]} 21. Rc7 {[%clk 0:01:32.1]} 21... b4 {[%clk 0:02:19.1]}
22. Rxd7 {[%clk 0:01:28.9]} 22... b3 {[%clk 0:02:19.6]} 23. a3 {[%clk 0:01:16]}
23... f5 {[%clk 0:02:11.2]} 24. Nxf5 {[%clk 0:00:59.8]} 1-0

[Event "*** Titled Tuesday 3|2 Blitz"]
[Site "Chess.com"]
[Date "2016.06.07"]
[Round "2"]
[White "Ar4uha"]
[Black "Malev212"]
[Result "0-1"]
[WhiteElo "2346"]
[BlackElo "2289"]
[TimeControl "180+2"]
[EndTime "17:17:38 PDT"]
[Termination "Malev212 won by resignation"]

1. e4 {[%clk 0:03:01.9]} 1... c6 {[%clk 0:02:54.3]} 2. Nc3 {[%clk 0:03:02.5]}
2... d5 {[%clk 0:02:54]} 3. Qe2 {[%clk 0:03:04.4]} 3... Nf6 {[%clk 0:02:45]} 4.
e5 {[%clk 0:03:04.4]} 4... Nfd7 {[%clk 0:02:45.8]} 5. e6 {[%clk 0:03:05.9]} 5...
fxe6 {[%clk 0:02:45.8]} 6. d4 {[%clk 0:03:07.5]} 6... e5 {[%clk 0:02:43.9]} 7.
dxe5 {[%clk 0:03:09.4]} 7... e6 {[%clk 0:02:38.7]} 8. Nh3 {[%clk 0:03:10.8]}
8... Be7 {[%clk 0:02:37.9]} 9. Nf4 {[%clk 0:03:10.5]} 9... Nf8 {[%clk
0:02:37.7]} 10. g3 {[%clk 0:03:09.2]} 10... c5 {[%clk 0:02:27.5]} 11. h4 {[%clk
0:03:09.5]} 11... Nc6 {[%clk 0:02:26.4]} 12. Bd2 {[%clk 0:02:52.4]} 12... Nd4
{[%clk 0:02:19.2]} 13. Qd3 {[%clk 0:02:49.7]} 13... Qb6 {[%clk 0:02:18.7]} 14.
O-O-O {[%clk 0:02:46.3]} 14... Bd7 {[%clk 0:02:16.9]} 15. Ncxd5 {[%clk
0:02:40.4]} 15... exd5 {[%clk 0:02:15]} 16. Nxd5 {[%clk 0:02:42.3]} 16... Qd8
{[%clk 0:01:55.7]} 17. Nxe7 {[%clk 0:02:36.2]} 17... Qxe7 {[%clk 0:01:55.6]} 18.
Bg5 {[%clk 0:02:35.8]} 18... Qf7 {[%clk 0:01:53.9]} 19. c3 {[%clk 0:02:35.7]}
19... Bf5 {[%clk 0:01:47.8]} 20. Qd2 {[%clk 0:02:19.6]} 20... Qxa2 {[%clk
0:01:46.8]} 21. Bb5+ {[%clk 0:01:47.9]} 21... Nxb5 {[%clk 0:01:40.7]} 22. Qd5
{[%clk 0:01:42.6]} 22... Qxd5 {[%clk 0:01:37.5]} 23. Rxd5 {[%clk 0:01:44.5]}
23... Be4 {[%clk 0:01:38.3]} 24. Rhd1 {[%clk 0:01:44.7]} 24... Bxd5 {[%clk
0:01:38.6]} 25. Rxd5 {[%clk 0:01:46.6]} 25... Ne6 {[%clk 0:01:39]} 26. Be3
{[%clk 0:01:48]} 26... Nbc7 {[%clk 0:01:39]} 27. c4 {[%clk 0:01:49.9]} 27... Rd8
{[%clk 0:01:39]} 0-1

[Event "*** Titled Tuesday 3|2 Blitz"]
[Site "Chess.com"]
[Date "2016.06.07"]
[Round "2"]
[White "1random"]
[Black "Kawhi_Leonard2"]
[Result "1-0"]
[WhiteElo "2125"]
[BlackElo "2034"]
[TimeControl "180+2"]
[EndTime "17:18:41 PDT"]
[Termination "1random won by resignation"]

1. e4 {[%clk 0:03:01.9]} 1... c5 {[%clk 0:02:59.3]} 2. Nf3 {[%clk 0:02:56]} 2...
d6 {[%clk 0:03:00]} 3. d4 {[%clk 0:02:50.9]} 3... cxd4 {[%clk 0:03:00.4]} 4.
Nxd4 {[%clk 0:02:52.8]} 4... Nf6 {[%clk 0:03:01.3]} 5. Nc3 {[%clk 0:02:49.5]}
5... g6 {[%clk 0:03:02.8]} 6. Be3 {[%clk 0:02:48.2]} 6... Bg7 {[%clk 0:03:04.3]}
7. f3 {[%clk 0:02:47.6]} 7... O-O {[%clk 0:03:05.8]} 8. Qd2 {[%clk 0:02:49.1]}
8... Nc6 {[%clk 0:03:06.1]} 9. O-O-O {[%clk 0:02:49.1]} 9... d5 {[%clk
0:03:06.6]} 10. Kb1 {[%clk 0:02:47.2]} 10... Nxd4 {[%clk 0:03:02.9]} 11. e5
{[%clk 0:02:47.3]} 11... Nf5 {[%clk 0:03:03.5]} 12. exf6 {[%clk 0:02:48]} 12...
exf6 {[%clk 0:03:04.6]} 13. Bc5 {[%clk 0:02:48.7]} 13... d4 {[%clk 0:03:04.3]}
14. Bxf8 {[%clk 0:02:49.7]} 14... Qxf8 {[%clk 0:03:04.6]} 15. Nb5 {[%clk
0:02:50.6]} 15... Ne3 {[%clk 0:02:03.6]} 16. Rc1 {[%clk 0:02:50.5]} 16... f5
{[%clk 0:01:40.2]} 17. Nxd4 {[%clk 0:02:45]} 17... f4 {[%clk 0:01:41.1]} 18. g3
{[%clk 0:02:43.6]} 18... Qc5 {[%clk 0:01:19.1]} 19. c3 {[%clk 0:02:41]} 19...
Bf5+ {[%clk 0:00:52.6]} 20. Nxf5 {[%clk 0:02:39.3]} 20... Qxf5+ {[%clk
0:00:52.9]} 21. Bd3 {[%clk 0:02:39.1]} 21... Qf6 {[%clk 0:00:37.6]} 22. gxf4
{[%clk 0:02:22.4]} 22... Nd5 {[%clk 0:00:35.3]} 23. f5 {[%clk 0:02:19.3]} 23...
g5 {[%clk 0:00:18.5]} 24. Be4 {[%clk 0:02:18.9]} 24... Nf4 {[%clk 0:00:18.5]}
25. h4 {[%clk 0:02:16.6]} 25... h6 {[%clk 0:00:18.5]} 26. hxg5 {[%clk
0:02:17.3]} 26... hxg5 {[%clk 0:00:19.3]} 27. Rcd1 {[%clk 0:02:10.5]} 27... Rb8
{[%clk 0:00:19.6]} 28. Qd6 {[%clk 0:02:08.8]} 28... b5 {[%clk 0:00:19.3]} 29.
Qxb8+ {[%clk 0:02:09.2]} 1-0

[Event "*** Titled Tuesday 3|2 Blitz"]
[Site "Chess.com"]
[Date "2016.06.07"]
[Round "2"]
[White "yopino"]
[Black "TheLancer"]
[Result "1-0"]
[WhiteElo "2250"]
[BlackElo "2439"]
[TimeControl "180+2"]
[EndTime "17:19:09 PDT"]
[Termination "yopino won by resignation"]

1. e4 {[%clk 0:03:01.9]} 1... c5 {[%clk 0:03:01.5]} 2. Nc3 {[%clk 0:02:58.5]}
2... g6 {[%clk 0:03:03]} 3. Nf3 {[%clk 0:02:48]} 3... Bg7 {[%clk 0:03:02.4]} 4.
d4 {[%clk 0:02:45.3]} 4... cxd4 {[%clk 0:03:04.3]} 5. Nxd4 {[%clk 0:02:45.1]}
5... Nc6 {[%clk 0:03:06.2]} 6. Be3 {[%clk 0:02:39.4]} 6... Nf6 {[%clk
0:03:01.7]} 7. Bc4 {[%clk 0:02:39.7]} 7... O-O {[%clk 0:03:02.1]} 8. Bb3 {[%clk
0:02:38.5]} 8... a5 {[%clk 0:03:03.3]} 9. f3 {[%clk 0:02:29.2]} 9... d5 {[%clk
0:03:03.7]} 10. exd5 {[%clk 0:02:25.3]} 10... Nb4 {[%clk 0:03:03.4]} 11. Nde2
{[%clk 0:02:25]} 11... a4 {[%clk 0:02:59.5]} 12. Nxa4 {[%clk 0:02:22.2]} 12...
Nfxd5 {[%clk 0:02:55.1]} 13. Bf2 {[%clk 0:02:22.4]} 13... Bf5 {[%clk 0:02:11.7]}
14. O-O {[%clk 0:02:22.9]} 14... Rc8 {[%clk 0:02:10.9]} 15. c4 {[%clk
0:02:06.2]} 15... Nf6 {[%clk 0:01:50.9]} 16. Qxd8 {[%clk 0:01:53.7]} 16... Rcxd8
{[%clk 0:01:52.8]} 17. Rad1 {[%clk 0:01:48.2]} 17... Nd3 {[%clk 0:01:37.9]} 18.
Be3 {[%clk 0:01:49.1]} 18... Nd7 {[%clk 0:01:26.4]} 19. g4 {[%clk 0:01:45.5]}
19... Bxg4 {[%clk 0:01:17.6]} 20. fxg4 {[%clk 0:01:47.4]} 20... N7e5 {[%clk
0:01:13.2]} 21. g5 {[%clk 0:01:37.9]} 21... Ng4 {[%clk 0:01:13.1]} 22. Bb6
{[%clk 0:01:34.3]} 22... Rd6 {[%clk 0:00:54.6]} 23. c5 {[%clk 0:01:35.4]} 23...
Rd7 {[%clk 0:00:52.2]} 24. Nac3 {[%clk 0:01:32.5]} 24... Rc8 {[%clk 0:00:28.3]}
25. Bxf7+ {[%clk 0:01:28.4]} 25... Kh8 {[%clk 0:00:27.3]} 26. Be6 {[%clk
0:01:28.8]} 26... Nxc5 {[%clk 0:00:22.7]} 27. Bxd7 {[%clk 0:01:23.8]} 1-0

[Event "*** Titled Tuesday 3|2 Blitz"]
[Site "Chess.com"]
[Date "2016.06.07"]
[Round "2"]
[White "hangemhigh"]
[Black "oskariot"]
[Result "0-1"]
[WhiteElo "2212"]
[BlackElo "2411"]
[TimeControl "180+2"]
[EndTime "17:19:15 PDT"]
[Termination "oskariot won by checkmate"]

1. d4 {[%clk 0:02:50]} 1... Nf6 {[%clk 0:03:00.8]} 2. Nf3 {[%clk 0:02:49.1]}
2... g6 {[%clk 0:03:01.1]} 3. Bf4 {[%clk 0:02:49.8]} 3... c5 {[%clk 0:03:01.2]}
4. d5 {[%clk 0:02:48.4]} 4... Bg7 {[%clk 0:03:00.3]} 5. Nc3 {[%clk 0:02:48.1]}
5... O-O {[%clk 0:02:59.5]} 6. Qd2 {[%clk 0:02:47.2]} 6... b5 {[%clk 0:02:30.8]}
7. Nxb5 {[%clk 0:02:03.5]} 7... Qb6 {[%clk 0:02:27]} 8. Nc3 {[%clk 0:01:57]}
8... Qxb2 {[%clk 0:02:27.5]} 9. Rb1 {[%clk 0:01:56.8]} 9... Qa3 {[%clk
0:02:28.4]} 10. Rxb8 {[%clk 0:01:45.5]} 10... Rxb8 {[%clk 0:01:42.5]} 11. Bxb8
{[%clk 0:01:47.4]} 11... Ba6 {[%clk 0:01:43.7]} 12. Be5 {[%clk 0:01:45.1]} 12...
d6 {[%clk 0:01:29.8]} 13. Bxf6 {[%clk 0:01:39.8]} 13... Bxf6 {[%clk 0:01:30.8]}
14. Nd1 {[%clk 0:01:37.1]} 14... Rb8 {[%clk 0:01:18.5]} 15. g3 {[%clk
0:01:23.7]} 15... Rb1 {[%clk 0:01:14.8]} 16. Qe3 {[%clk 0:00:16.8]} 16... Bc3+
{[%clk 0:01:07.5]} 17. Nd2 {[%clk 0:00:16.4]} 17... Qc1 {[%clk 0:01:05.6]} 18.
Qxc3 {[%clk 0:00:12.2]} 18... Qxd1# {[%clk 0:01:06.2]} 0-1

[Event "*** Titled Tuesday 3|2 Blitz"]
[Site "Chess.com"]
[Date "2016.06.07"]
[Round "2"]
[White "Boryboy"]
[Black "Bigfish1995"]
[Result "1-0"]
[WhiteElo "2548"]
[BlackElo "2603"]
[TimeControl "180+2"]
[EndTime "17:19:35 PDT"]
[Termination "Boryboy won by resignation"]

1. d4 {[%clk 0:03:01.9]} 1... Nf6 {[%clk 0:02:59.4]} 2. Nf3 {[%clk 0:02:57.5]}
2... e6 {[%clk 0:03:00.4]} 3. g3 {[%clk 0:02:58.6]} 3... b6 {[%clk 0:03:01.7]}
4. Bg2 {[%clk 0:02:59.7]} 4... Bb7 {[%clk 0:03:03.2]} 5. c4 {[%clk 0:03:00.9]}
5... Be7 {[%clk 0:03:04.3]} 6. O-O {[%clk 0:03:00.8]} 6... O-O {[%clk
0:03:05.9]} 7. d5 {[%clk 0:03:01.1]} 7... exd5 {[%clk 0:03:06.5]} 8. Nh4 {[%clk
0:03:02.3]} 8... c6 {[%clk 0:03:08]} 9. cxd5 {[%clk 0:02:59.8]} 9... Nxd5 {[%clk
0:03:08.9]} 10. Nf5 {[%clk 0:03:01.1]} 10... Nc7 {[%clk 0:03:10.5]} 11. e4
{[%clk 0:03:01.9]} 11... Nba6 {[%clk 0:03:11.1]} 12. Nc3 {[%clk 0:03:02.8]}
12... d5 {[%clk 0:03:04.4]} 13. exd5 {[%clk 0:03:02.7]} 13... cxd5 {[%clk
0:03:04.6]} 14. Bf4 {[%clk 0:03:01.5]} 14... Bf6 {[%clk 0:03:04.5]} 15. Rc1
{[%clk 0:02:46.8]} 15... Qd7 {[%clk 0:02:40.3]} 16. Bh3 {[%clk 0:01:55]} 16...
Kh8 {[%clk 0:02:23.6]} 17. Ne4 {[%clk 0:01:50]} 17... Bxb2 {[%clk 0:02:19.3]}
18. Rc2 {[%clk 0:01:50.7]} 18... Ba3 {[%clk 0:02:13.8]} 19. Ng5 {[%clk
0:01:48.1]} 19... Ne6 {[%clk 0:01:48.3]} 20. Nxg7 {[%clk 0:01:28]} 20... Qe7
{[%clk 0:00:55.1]} 21. N7xe6 {[%clk 0:01:22.6]} 21... fxe6 {[%clk 0:00:54.9]}
22. Be5+ {[%clk 0:01:22.9]} 22... Rf6 {[%clk 0:00:56.3]} 23. Qh5 {[%clk
0:01:19.5]} 23... Rf8 {[%clk 0:00:52.9]} 24. Nxe6 {[%clk 0:01:18.6]} 24... Rf7
{[%clk 0:00:53.7]} 25. Nf4 {[%clk 0:01:09]} 25... Bd6 {[%clk 0:00:50.2]} 26.
Ng6+ {[%clk 0:01:07.6]} 1-0